fUSD/lending_fUSD_20240327
["ID","MTS","AMOUNT","RATE_DAILY","PERIOD"]
[320736087,1711539147871,-695.47,0.00059999,120]
[320736088,1711539147880,-1458.74,0.00059999,120]
[320736089,1711539147889,-597.38,0.00059999,120]
[320736090,1711539147899,-1146.87,0.00059999,120]
[320736091,1711539147909,-2719.96,0.00059999,120]
[320736092,1711539147918,-500.0,0.00059999,120]
[320736093,1711539147927,-1170.95,0.00059999,120]
[320736094,1711539147937,-1986.6,0.00059999,120]
[320736095,1711539147946,-884.38,0.00059999,120]
[320736096,1711539147956,-1057.95,0.00059999,120]
[320736097,1711539147965,-616.91,0.00059999,120]
[320736098,1711539147975,-533.04,0.00059999,120]
[320736099,1711539147985,-702.45,0.00059999,120]
[320736100,1711539147994,-537.22,0.00059999,120]
[320736101,1711539148008,-5471.51,0.00059999,120]
[320736102,1711539148018,-587.11,0.00059999,120]
[320736103,1711539148028,-500.0,0.00059999,120]
[320736104,1711539148037,-2128.3,0.00059999,120]
[320736105,1711539148047,-443.70061413,0.00059999,120]
[320736106,1711539148056,-961.96,0.00059999,120]
[320736107,1711539148065,-792.02,0.00059999,120]
[320736108,1711539148075,-613.31,0.00059999,120]
[320736109,1711539148084,-1258.8,0.00059999,120]
[320736110,1711539148094,-931.2,0.00059999,120]
[320736111,1711539148103,-663.5,0.00059999,120]
[320736112,1711539148112,-501.0,0.00059999,120]
[320736113,1711539148122,-1126.29,0.00059999,120]
[320736114,1711539148131,-905.93,0.00059999,120]
[320736115,1711539148140,-596.37,0.00059999,120]
[320736116,1711539148149,-1145.15,0.00059999,120]
[320736117,1711539148158,-1047.43,0.00059999,120]
[320736118,1711539148168,-1079.19,0.00059999,120]
[320736119,1711539148179,-500.0,0.00059999,120]
[320736120,1711539148189,-1050.1,0.00059999,120]
[320736121,1711539148200,-668.88,0.00059999,120]
[320736122,1711539148209,-798.22,0.00059999,120]
[320736123,1711539148219,-865.88,0.00059999,120]
[320736124,1711539148230,-500.0,0.00059999,120]
[320736125,1711539148240,-698.77,0.00059999,120]
[320736126,1711539148250,-805.48,0.00059999,120]
[320736127,1711539148262,-895.29,0.00059999,120]
[320736128,1711539148273,-2904.63,0.00059999,120]
[320736129,1711539148283,-575.0,0.00059999,120]
[320736130,1711539148293,-1059.6,0.00059999,120]
[320736131,1711539148304,-624.76,0.00059999,120]
[320736132,1711539148313,-566.16,0.00059999,120]
[320736133,1711539148322,-596.27,0.00059999,120]
[320736134,1711539148331,-511.44,0.00059999,120]
[320736135,1711539148343,-670.39,0.00059999,120]
[320736136,1711539148354,-2461.83,0.00059999,120]
[320736137,1711539148364,-218.17723219,0.00059999,120]
[320736138,1711539148373,-1096.84,0.00059999,120]
[320736139,1711539148383,-730.57,0.00059999,120]
[320736140,1711539148392,-526.24,0.00059999,120]
[320736141,1711539148402,-813.47,0.00059999,120]
[320736142,1711539148411,-982.22,0.00059999,120]
[320736143,1711539148422,-2323.15,0.00059999,120]
[320736144,1711539148432,-952.22,0.00059999,120]
[320736145,1711539148441,-1090.65,0.00059999,120]
[320736146,1711539148451,-2118.58,0.00059999,120]
[320736147,1711539148461,-819.74,0.00059999,120]
[320736148,1711539148470,-290.51543629,0.00059999,120]
[320736149,1711539148479,-1006.99,0.00059999,120]
[320736150,1711539148489,-680.58,0.00059999,120]
[320736151,1711539148499,-500.0,0.00059999,120]
[320736152,1711539148508,-2012.56,0.00059999,120]
[320736153,1711539148518,-525.09,0.00059999,120]
[320736154,1711539148528,-1027.05,0.00059999,120]
[320736155,1711539148538,-775.63,0.00059999,120]
[320736156,1711539148548,-909.15,0.00059999,120]
[320736157,1711539148558,-669.48,0.00059999,120]
[320736158,1711539148568,-2014.61,0.00059999,120]
[320736159,1711539148578,-613.39,0.00059999,30]
[320736160,1711539148587,-670.15,0.00059999,120]
[320736161,1711539148597,-613.0,0.00059999,120]
[320736162,1711539148607,-500.0,0.00059999,120]
[320736163,1711539148617,-741.01,0.00059999,120]
[320736164,1711539148626,-715.82,0.00059999,120]
[320736165,1711539148636,-693.91,0.00059999,120]
[320736166,1711539148646,-1436.63,0.00059999,120]
[320736167,1711539148656,-788.63,0.00059999,120]
[320736168,1711539148666,-852.33,0.00059999,120]
[320736169,1711539148675,-608.04,0.00059999,120]
[320736170,1711539148687,-500.0,0.00059999,120]
[320736171,1711539148696,-632.68,0.00059999,120]
[320736172,1711539148708,-365.10900047,0.00059999,120]
[320736173,1711539148720,-524.62,0.00059999,120]
[320736174,1711539148731,-620.43,0.00059999,120]
[320736175,1711539148743,-818.9,0.00059999,120]
[320736176,1711539148754,-2063.63,0.00059999,120]
[320736177,1711539148765,-1004.28,0.00059999,120]
[320736178,1711539148775,-2011.71,0.00059999,120]
[320736179,1711539148785,-807.51,0.00059999,120]
[320736180,1711539148795,-763.33,0.00059999,120]
[320736181,1711539148805,-755.18,0.00059999,120]
[320736182,1711539148815,-487.81,0.00059999,120]
[320736183,1711539148827,-842.7,0.00059999,120]
[320736184,1711539148839,-713.05,0.00059999,120]
[320736185,1711539148849,-2308.15,0.00059999,120]
[320736186,1711539148858,-500.0,0.00059999,120]
[320736187,1711539148868,-676.12,0.00059999,120]
[320736188,1711539148877,-849.59,0.00059999,120]
[320736189,1711539148886,-677.22,0.00059999,120]
[320736190,1711539148896,-800.48,0.00059999,120]
[320736191,1711539148906,-988.02,0.00059999,120]
[320736192,1711539148915,-535.04,0.00059999,120]
[320736193,1711539148925,-930.48,0.00059999,120]
[320736194,1711539148934,-877.53,0.00059999,120]
[320736195,1711539148943,-2082.72,0.00059999,120]
[320736196,1711539148952,-520.53,0.00059999,120]
[320736197,1711539148962,-1016.45,0.00059999,120]
[320736198,1711539148971,-525.83,0.00059999,120]
[320736199,1711539148980,-1436.62,0.00059999,120]
[320736200,1711539148989,-2558.6,0.00059999,120]
[320736201,1711539148999,-2044.63,0.00059999,120]
[320736202,1711539149008,-545.88,0.00059999,120]
[320736203,1711539149017,-783.0,0.00059999,120]
[320736204,1711539149026,-3085.25,0.00059999,120]
[320736205,1711539149036,-839.83,0.00059999,120]
[320736206,1711539149046,-735.26,0.00059999,120]
[320736207,1711539149055,-3173.89,0.00059999,120]
[320736208,1711539149065,-1365.01,0.00059999,120]
[320736209,1711539149075,-1347.96,0.00059999,120]
[320736210,1711539149084,-500.0,0.00059999,120]
[320736211,1711539149094,-5132.44,0.00059999,120]
[320736212,1711539149103,-558.52,0.00059999,120]
[320736213,1711539149113,-7133.78,0.00059999,120]
[320736214,1711539149122,-579.76,0.00059999,120]
[320736215,1711539149131,-1944.43,0.00059999,120]
[320736216,1711539149140,-500.0,0.00059999,120]
[320736217,1711539149150,-6097.44,0.00059999,120]
[320736218,1711539149159,-5109.09,0.00059999,120]
[320736219,1711539149169,-545.62,0.00059999,120]
[320736220,1711539149178,-663.4,0.00059999,120]
[320736221,1711539149187,-22670.34,0.00059999,120]
[320736222,1711539149196,-2453.89,0.00059999,120]
[320736223,1711539149205,-2612.82,0.00059999,120]
[320736224,1711539149215,-1096.81,0.00059999,120]
[320736225,1711539149224,-7956.37,0.00059999,120]
[320736226,1711539149234,-2520.37,0.00059999,120]
[320736227,1711539149245,-628.48,0.00059999,120]
[320736228,1711539149255,-500.0,0.00059999,120]
[320736229,1711539149267,-1032.54,0.00059999,120]
[320736230,1711539149278,-2884.81,0.00059999,120]
[320736231,1711539149289,-3753.0,0.00059999,120]
[320736232,1711539149299,-5025.57,0.00059999,120]
[320736233,1711539149309,-43977.12,0.00059999,120]
[320736234,1711539149319,-9397.34,0.00059999,120]
[320736235,1711539149328,-7954.08,0.00059999,120]
[320736236,1711539149337,-832.53,0.00059999,120]
[320736237,1711539149347,-5423.8,0.00059999,120]
[320736238,1711539149357,-5589.81,0.00059999,120]
[320736239,1711539149366,-3477.52,0.00059999,120]
[320736240,1711539149375,-500.0,0.00059999,120]
[320736241,1711539149385,-3295.4,0.00059999,120]
[320736242,1711539149394,-214.76178647,0.00059999,120]
[320736243,1711539149403,-79143.13,0.00059999,120]
[320736244,1711539149413,-4233.1,0.00059999,120]
[320736245,1711539149422,-1554.43,0.00059999,120]
[320736246,1711539149432,-21230.92,0.00059999,120]
[320736247,1711539149442,-1796.45,0.00059999,120]
[320736248,1711539149452,-1488.59,0.00059999,120]
[320736249,1711539149462,-1590.82,0.00059999,120]
[320736250,1711539149472,-4270.02,0.00059999,120]
[320736251,1711539150320,-1416.51,0.00059999,120]
[320736252,1711539150330,-1436.29,0.00059999,120]
[320736253,1711539150341,-2733.23,0.00059999,120]
[320736254,1711539150350,-4828.26,0.00059999,120]
[320736255,1711539150360,-2699.02,0.00059999,120]
[320736256,1711539150371,-794.6,0.00059999,120]
[320736257,1711539150381,-4103.23,0.00059999,120]
[320736258,1711539150391,-2649.26,0.00059999,120]
[320736259,1711539150400,-3406.52,0.00059999,120]
[320736260,1711539150410,-1067.47,0.00059999,120]
[320736261,1711539150419,-500.0,0.00059999,120]
[320736262,1711539150429,-1008.05,0.00059999,120]
[320736263,1711539150438,-532.43,0.00059999,120]
[320736264,1711539150448,-3326.63,0.00059999,120]
[320736265,1711539150457,-949.03,0.00059999,120]
[320736266,1711539150468,-13832.31,0.00059999,120]
[320736267,1711539150477,-5725.46,0.00059999,120]
[320736268,1711539150487,-1080.08,0.00059999,120]
[320736269,1711539150496,-638.55,0.00059999,120]
[320736270,1711539150507,-532.1,0.00059999,120]
[320736271,1711539150516,-3178.59,0.00059999,120]
[320736272,1711539150526,-1914.32,0.00059999,120]
[320736273,1711539150536,-868.21,0.00059999,120]
[320736274,1711539150545,-5718.22,0.00059999,120]
[320736275,1711539150555,-1510.54,0.00059999,120]
[320736276,1711539150564,-6090.95,0.00059999,120]
[320736277,1711539150573,-2368.29,0.00059999,120]
[320736278,1711539150583,-1975.68,0.00059999,120]
[320736279,1711539150593,-2626.24,0.00059999,120]
[320736280,1711539150602,-826.27,0.00059999,120]
[320736281,1711539150611,-5971.8,0.00059999,120]
[320736282,1711539150621,-6306.66,0.00059999,120]
[320736283,1711539150630,-3796.34,0.00059999,120]
[320736284,1711539150640,-3897.67,0.00059999,120]
[320736285,1711539150649,-2196.71,0.00059999,120]
[320736286,1711539150658,-500.0,0.00059999,7]
[320736287,1711539150668,-1053.73,0.00059999,120]
[320736288,1711539150677,-2509.66,0.00059999,120]
[320736289,1711539150686,-500.0,0.00059999,120]
[320736290,1711539150695,-2090.88,0.00059999,120]
[320736291,1711539150704,-3728.83,0.00059999,120]
[320736292,1711539150713,-14051.88,0.00059999,120]
[320736293,1711539150722,-5336.71,0.00059999,120]
[320736294,1711539150732,-6046.1,0.00059999,120]
[320736295,1711539150741,-1400.16,0.00059999,120]
[320736296,1711539150751,-6749.09,0.00059999,120]
[320736297,1711539150761,-1020.49,0.00059999,120]
[320736298,1711539150770,-3525.02,0.00059999,120]
[320736299,1711539150779,-9670.8,0.00059999,120]
[320736300,1711539150789,-2244.9,0.00059999,120]
[320736301,1711539150798,-4278.93,0.00059999,120]
[320736302,1711539150808,-500.0,0.00059999,120]
[320736303,1711539150817,-5002.55,0.00059999,120]
[320736304,1711539150826,-1319.68,0.00059999,120]
[320736305,1711539150835,-5599.22,0.00059999,120]
[320736306,1711539150846,-4145.52,0.00059999,120]
[320736307,1711539150855,-1033.96,0.00059999,120]
[320736308,1711539150864,-8690.1,0.00059999,120]
[320736309,1711539150873,-759.99,0.00059999,120]
[320736310,1711539150884,-938.28,0.00059999,120]
[320736311,1711539150894,-3689.75,0.00059999,120]
[320736312,1711539150903,-3289.32,0.00059999,120]
[320736313,1711539150913,-773.1,0.00059999,120]
[320736314,1711539150922,-8474.88,0.00059999,120]
[320736315,1711539150932,-670.41,0.00059999,120]
[320736316,1711539150942,-684.84,0.00059999,120]
[320736317,1711539150951,-991.15,0.00059999,120]
[320736318,1711539150960,-16950.66,0.00059999,120]
[320736319,1711539150969,-5480.38,0.00059999,120]
[320736320,1711539150978,-3421.26,0.00059999,120]
[320736321,1711539150987,-649.49,0.00059999,120]
[320736322,1711539150997,-1159.66,0.00059999,120]
[320736323,1711539151007,-2172.19,0.00059999,120]
[320736324,1711539151017,-2895.84,0.00059999,120]
[320736325,1711539151027,-2732.75,0.00059999,120]
[320736326,1711539151038,-20784.38,0.00059999,120]
[320736327,1711539151046,-17160.48,0.00059999,120]
[320736328,1711539151058,-4740.83,0.00059999,120]
[320736329,1711539151067,-886.33,0.00059999,120]
[320736330,1711539151077,-672.63,0.00059999,120]
[320736331,1711539151086,-6247.3,0.00059999,120]
[320736332,1711539151096,-5091.09,0.00059999,21]
[320736333,1711539151105,-584.47,0.00059999,120]
[320736334,1711539151114,-8381.34,0.00059999,120]
[320736335,1711539151123,-2273.07,0.00059999,120]
[320736336,1711539151133,-4086.57,0.00059999,120]
[320736337,1711539151144,-2370.47,0.00059999,120]
[320736338,1711539151155,-19292.32,0.00059999,120]
[320736339,1711539151164,-2960.24,0.00059999,120]
[320736340,1711539151173,-1173.99,0.00059999,120]
[320736341,1711539151182,-2202.57,0.00059999,120]
[320736342,1711539151191,-3278.85,0.00059999,120]
[320736343,1711539151201,-12410.62,0.00059999,120]
[320736344,1711539151210,-8798.58,0.00059999,120]
[320736345,1711539151220,-876.94,0.00059999,120]
[320736346,1711539151229,-3583.19,0.00059999,120]
[320736347,1711539151238,-895.2,0.00059999,120]
[320736348,1711539151247,-1845.88,0.00059999,120]
[320736349,1711539151257,-937.27,0.00059999,120]
[320736350,1711539151269,-1083.78,0.00059999,120]
[320736351,1711539151278,-3201.11,0.00059999,120]
[320736352,1711539151288,-2638.24,0.00059999,120]
[320736353,1711539151299,-1388.52,0.00059999,120]
[320736354,1711539151311,-1100.88713291,0.00059999,120]
[320736355,1711539151333,-3791.38286709,0.00059999,120]
[320736356,1711539151343,-2480.34,0.00059999,120]
[320736357,1711539151356,-1350.19,0.00059999,120]
[320736358,1711539151367,-3142.36,0.00059999,120]
[320736359,1711539151378,-2180.01,0.00059999,120]
[320736360,1711539151387,-1470.53,0.00059999,120]
[320736361,1711539151397,-500.0,0.00059999,120]
[320736362,1711539151407,-505.71,0.00059999,120]
[320736363,1711539151416,-1659.22,0.00059999,120]
[320736364,1711539151425,-8083.93,0.00059999,120]
[320736365,1711539151435,-2931.63,0.00059999,120]
[320736366,1711539151445,-2901.36,0.00059999,120]
[320736367,1711539151454,-4166.77,0.00059999,120]
[320736368,1711539151463,-3516.57,0.00059999,120]
[320736369,1711539151473,-541.86,0.00059999,120]
[320736370,1711539151483,-10990.32,0.00059999,120]
[320736371,1711539151492,-1139.26,0.00059999,120]
[320736372,1711539151503,-686.73,0.00059999,120]
[320736373,1711539151513,-1716.32,0.00059999,120]
[320736374,1711539151522,-155.63560247,0.0006,120]
[320736375,1711539151531,-191.51969381,0.0006,60]
[320736376,1711539151541,-575.14887138,0.0006,90]
[320736377,1711539151550,-400.0,0.0006,7]
[320736378,1711539151559,-250.0,0.0006,60]
[320736379,1711539151568,-397.0,0.0006,120]
[320736380,1711539151581,-1361.0,0.0006,120]
[320736381,1711539151590,-151.16699376,0.0006,120]
[320736382,1711539151599,-150.0,0.0006,120]
[320736383,1711539151609,-150.0,0.0006,120]
[320736384,1711539151619,-150.0,0.0006,120]
[320736385,1711539151628,-250.0,0.0006,120]
[320736386,1711539151638,-33289.11899577,0.0006,15]
[320736387,1711539151647,-3196.38912452,0.0006,90]
[320736388,1711539151656,-196.32,0.0006,120]
[320736389,1711539151666,-2000.0,0.0006,120]
[320736390,1711539151675,-1000.0,0.0006,30]
[320736391,1711539151684,-7267.28784207,0.0006,4]
[320736392,1711539151694,-76777.49328068,0.0006,120]
[320736393,1711539151703,-1019.38,0.0006,120]
[320736394,1711539151712,-2701.0,0.0006,120]
[320736395,1711539151722,-6400.00000064,0.0006,14]
[320736396,1711539151731,-1001.58541159,0.0006,120]
[320736397,1711539151740,-18191.31234257,0.0006,120]
[320736398,1711539151751,-4942.82194741,0.0006,68]
[320736399,1711539151760,-3585.1787,0.0006,66]
[320736400,1711539151769,-156.14444312,0.00060038,120]
[320736401,1711539151780,-150.0,0.00060061,120]
[320736402,1711539151791,-224.0,0.00060092,30]
[320736403,1711539151802,-10000.0,0.000601,120]
[320736404,1711539151814,-157.04179302,0.00060117,120]
[320736405,1711539151825,-150.0,0.0006012,120]
[320736406,1711539151836,-150.0,0.00060142,120]
[320736407,1711539151846,-150.0,0.00060145,120]
[320736408,1711539151856,-513.08189374,0.0006015,120]
[320736409,1711539151866,-200.0,0.00060178,120]
[320736410,1711539151876,-157.032716,0.00060198,119]
[320736411,1711539151885,-150.0,0.00060223,120]
[320736412,1711539151896,-584.83949361,0.00060224,90]
[320736413,1711539151905,-500.0,0.00060224,90]
[320736414,1711539151914,-503.76281085,0.00060224,90]
[320736415,1711539151925,-531.68,0.00060233,2]
[320736416,1711539151936,-151.7063141,0.00060236,120]
[320736417,1711539151945,-166.56049652,0.00060247,120]
[320736418,1711539151955,-895.23,0.00060273,120]
[320736419,1711539151964,-575.28,0.00060273,120]
[320736420,1711539151973,-563.96,0.00060273,120]
[320736421,1711539151989,-500.0,0.00060273,120]
[320736422,1711539151998,-500.0,0.00060273,120]
[320736423,1711539152008,-976.2,0.00060273,120]
[320736424,1711539152017,-474.73301258,0.00060273,120]
[320736425,1711539152027,-531.34,0.00060273,120]
[320736426,1711539152036,-500.0,0.00060273,120]
[320736427,1711539152046,-575.24,0.00060273,120]
[320736428,1711539152055,-503.38,0.00060273,120]
[320736429,1711539152064,-500.0,0.00060273,120]
[320736430,1711539152073,-544.36,0.00060273,120]
[320736431,1711539152082,-656.62,0.00060273,120]
[320736432,1711539152092,-786.05,0.00060273,120]
[320736433,1711539152101,-1108.32,0.00060273,120]
[320736434,1711539152111,-500.0,0.00060273,120]
[320736435,1711539152120,-582.28,0.00060273,120]
[320736436,1711539152129,-500.0,0.00060273,120]
[320736437,1711539152138,-500.0,0.00060273,120]
[320736438,1711539152147,-500.0,0.00060273,120]
[320736439,1711539152157,-650.65,0.00060273,120]
[320736440,1711539152167,-666.49,0.00060273,120]
[320736441,1711539152176,-512.61,0.00060273,120]
[320736442,1711539152185,-500.0,0.00060273,120]
[320736443,1711539152194,-610.66,0.00060273,120]
[320736444,1711539152203,-544.48,0.00060273,120]
[320736445,1711539152212,-500.0,0.00060273,120]
[320736446,1711539152222,-1264.52,0.00060273,120]
[320736447,1711539152231,-564.14,0.00060273,120]
[320736448,1711539152240,-617.82,0.00060273,120]
[320736449,1711539152249,-832.09,0.00060273,120]
[320736450,1711539152259,-921.37,0.00060273,120]
[320736451,1711539152269,-695.47,0.00060273,120]
[320736452,1711539152279,-1458.74,0.00060273,120]
[320736453,1711539152289,-597.38,0.00060273,120]
[320736454,1711539152299,-1146.87,0.00060273,120]
[320736455,1711539152311,-2719.96,0.00060273,120]
[320736456,1711539152320,-500.0,0.00060273,120]
[320736457,1711539152331,-1170.95,0.00060273,120]
[320736458,1711539152341,-1986.6,0.00060273,120]
[320736459,1711539152352,-884.38,0.00060273,120]
[320736460,1711539152362,-1057.95,0.00060273,120]
[320736461,1711539152371,-616.91,0.00060273,120]
[320736462,1711539152381,-533.04,0.00060273,120]
[320736463,1711539152390,-702.45,0.00060273,120]
[320736464,1711539152400,-537.22,0.00060273,120]
[320736465,1711539152409,-5471.51,0.00060273,120]
[320736466,1711539152418,-587.11,0.00060273,120]
[320736467,1711539152428,-500.0,0.00060273,120]
[320736468,1711539152439,-2128.3,0.00060273,120]
[320736469,1711539152448,-961.96,0.00060273,120]
[320736470,1711539152458,-792.02,0.00060273,120]
[320736471,1711539152467,-613.31,0.00060273,120]
[320736472,1711539152477,-1258.8,0.00060273,120]
[320736473,1711539152486,-931.2,0.00060273,120]
[320736474,1711539152496,-663.5,0.00060273,120]
[320736475,1711539152507,-1126.29,0.00060273,120]
[320736476,1711539152517,-905.93,0.00060273,120]
[320736477,1711539152527,-596.37,0.00060273,120]
[320736478,1711539152536,-1145.15,0.00060273,120]
[320736479,1711539152546,-1047.43,0.00060273,120]
[320736480,1711539152555,-1079.19,0.00060273,120]
[320736481,1711539152564,-500.0,0.00060273,120]
[320736482,1711539152574,-1050.1,0.00060273,120]
[320736483,1711539152585,-668.88,0.00060273,120]
[320736484,1711539152595,-798.22,0.00060273,120]
[320736485,1711539152604,-865.88,0.00060273,120]
[320736486,1711539152614,-500.0,0.00060273,120]
[320736487,1711539152624,-698.77,0.00060273,120]
[320736488,1711539152633,-805.48,0.00060273,120]
[320736489,1711539152643,-895.29,0.00060273,120]
[320736490,1711539152653,-2904.63,0.00060273,120]
[320736491,1711539152662,-575.0,0.00060273,120]
[320736492,1711539152671,-1059.6,0.00060273,120]
[320736493,1711539152681,-624.76,0.00060273,120]
[320736494,1711539152690,-566.16,0.00060273,120]
[320736495,1711539152699,-596.27,0.00060273,120]
[320736496,1711539152708,-511.44,0.00060273,120]
[320736497,1711539152718,-670.39,0.00060273,120]
[320736498,1711539152727,-2461.83,0.00060273,120]
[320736499,1711539152736,-1096.84,0.00060273,120]
[320736500,1711539152745,-730.57,0.00060273,120]
[320736501,1711539152756,-526.24,0.00060273,120]
[320736502,1711539152765,-813.47,0.00060273,120]
[320736503,1711539152774,-982.22,0.00060273,120]
[320736504,1711539152784,-2323.15,0.00060273,120]
[320736505,1711539152793,-952.22,0.00060273,120]
[320736506,1711539152803,-1090.65,0.00060273,120]
[320736507,1711539152814,-2118.58,0.00060273,120]
[320736508,1711539152826,-819.74,0.00060273,120]
[320736509,1711539152837,-1006.99,0.00060273,120]
[320736510,1711539152846,-680.58,0.00060273,120]
[320736511,1711539152856,-260.25984791,0.00060273,120]
[320736512,1711539152866,-2012.56,0.00060273,120]
[320736513,1711539152875,-525.09,0.00060273,120]
[320736514,1711539152885,-1027.05,0.00060273,120]
[320736515,1711539152894,-775.63,0.00060273,120]
[320736516,1711539152904,-909.15,0.00060273,120]
[320736517,1711539152914,-669.48,0.00060273,120]
[320736518,1711539152924,-2014.61,0.00060273,120]
[320736519,1711539152934,-613.39,0.00060273,30]
[320736520,1711539152944,-670.15,0.00060273,120]
[320736521,1711539152954,-613.0,0.00060273,120]
[320736522,1711539152964,-500.0,0.00060273,120]
[320736523,1711539152973,-741.01,0.00060273,120]
[320736524,1711539152984,-715.82,0.00060273,120]
[320736525,1711539152993,-693.91,0.00060273,120]
[320736526,1711539153003,-1436.63,0.00060273,120]
[320736527,1711539153014,-788.63,0.00060273,120]
[320736528,1711539153024,-852.33,0.00060273,120]
[320736529,1711539153034,-608.04,0.00060273,120]
[320736530,1711539153045,-228.07555384,0.00060273,120]
[320736531,1711539153056,-632.68,0.00060273,120]
[320736532,1711539153066,-524.62,0.00060273,120]
[320736533,1711539153075,-620.43,0.00060273,120]
[320736534,1711539153085,-818.9,0.00060273,120]
[320736535,1711539153095,-2063.63,0.00060273,120]
[320736536,1711539153106,-1004.28,0.00060273,120]
[320736537,1711539153116,-2011.71,0.00060273,120]
[320736538,1711539153127,-807.51,0.00060273,120]
[320736539,1711539153140,-763.33,0.00060273,120]
[320736540,1711539153150,-755.18,0.00060273,120]
[320736541,1711539153159,-487.81,0.00060273,120]
[320736542,1711539153169,-842.7,0.00060273,120]
[320736543,1711539153178,-713.05,0.00060273,120]
[320736544,1711539153188,-2308.15,0.00060273,120]
[320736545,1711539153197,-500.0,0.00060273,120]
[320736546,1711539153207,-676.12,0.00060273,120]
[320736547,1711539153218,-849.59,0.00060273,120]
[320736548,1711539153367,-677.22,0.00060273,120]
[320736549,1711539153377,-800.48,0.00060273,120]
[320736550,1711539153387,-988.02,0.00060273,120]
[320736551,1711539153397,-535.04,0.00060273,120]
[320736552,1711539153408,-930.48,0.00060273,120]
[320736553,1711539153417,-877.53,0.00060273,120]
[320736554,1711539153427,-2082.72,0.00060273,120]
[320736555,1711539153437,-520.53,0.00060273,120]
[320736556,1711539153447,-1016.45,0.00060273,120]
[320736557,1711539153457,-525.83,0.00060273,120]
[320736558,1711539153467,-1436.62,0.00060273,120]
[320736559,1711539153478,-2558.6,0.00060273,120]
[320736560,1711539153487,-2044.63,0.00060273,120]
[320736561,1711539153497,-545.88,0.00060273,120]
[320736562,1711539153509,-783.0,0.00060273,120]
[320736563,1711539153520,-3085.25,0.00060273,120]
[320736564,1711539153532,-839.83,0.00060273,120]
[320736565,1711539153543,-735.26,0.00060273,120]
[320736566,1711539153553,-3173.89,0.00060273,120]
[320736567,1711539153564,-1365.01,0.00060273,120]
[320736568,1711539153574,-1347.96,0.00060273,120]
[320736569,1711539153584,-237.07998292,0.00060273,120]
[320736570,1711539153594,-5132.44,0.00060273,120]
[320736571,1711539153605,-558.52,0.00060273,120]
[320736572,1711539153615,-7133.78,0.00060273,120]
[320736573,1711539153625,-579.76,0.00060273,120]
[320736574,1711539153635,-1944.43,0.00060273,120]
[320736575,1711539153645,-218.63145774,0.00060273,120]
[320736576,1711539153655,-6097.44,0.00060273,120]
[320736577,1711539153665,-5109.09,0.00060273,120]
[320736578,1711539153675,-545.62,0.00060273,120]
[320736579,1711539153684,-663.4,0.00060273,120]
[320736580,1711539153694,-22670.34,0.00060273,120]
[320736581,1711539153703,-2453.89,0.00060273,120]
[320736582,1711539153713,-2612.82,0.00060273,120]
[320736583,1711539153725,-1096.81,0.00060273,120]
[320736584,1711539153734,-2520.37,0.00060273,120]
[320736585,1711539153744,-7956.37,0.00060273,120]
[320736586,1711539153754,-628.48,0.00060273,120]